bitfinex/quotes_ETHUSD_20240715
["timestamp","ask_amount","ask_price","bid_price","bid_amount"]
[1721025903613,0.15415085,3357.0,3356.9,4.38104]
[1721025904163,0.15415085,3357.5,3356.9,4.38104]
[1721025904387,0.15415085,3357.5,3357.3,2.68065]
[1721025904648,0.15415085,3357.5,3357.4,0.05956078]
[1721025904853,0.15415085,3357.5,3357.3,1.7]
[1721025905419,0.15415085,3357.5,3357.3,1.75956147]
[1721025905610,0.15415085,3357.5,3357.4,2.68064]
[1721025906265,0.15415085,3357.7,3357.6,2.68048]
[1721025908113,0.15415085,3357.9,3357.7,4.38039]
[1721025908844,6.22392836,3358.1,3357.5,2.68054]
[1721025908845,0.15415085,3357.6,3357.5,2.68054]
[1721025909716,0.15415085,3357.6,3357.3,2.68072]
[1721025909938,0.15415085,3357.6,3357.4,2.68062]
[1721025910151,0.15415085,3357.6,3357.4,2.71106714]
[1721025910330,0.15415085,3357.6,3357.5,2.68056]
[1721025910757,0.15415085,3357.1,3357.0,2.68094]
[1721025911673,0.15415085,3357.1,3356.7,0.30920123]
[1721025911674,0.15415085,3356.9,3356.7,2.99040123]
[1721025912086,0.15415085,3356.9,3356.6,1.527992]
[1721025912376,0.15415085,3356.7,3356.6,4.209272]
[1721025913174,0.15415085,3356.7,3356.6,5.909272]
[1721025914639,0.15415085,3356.7,3356.6,3.227992]
[1721025915780,0.15415085,3356.7,3356.6,5.909272]
[1721025916684,0.15415085,3356.7,3356.6,3.227992]
[1721025916890,0.15415085,3356.7,3356.6,1.527992]
[1721025918864,0.15415085,3356.7,3356.1,2.68167]
[1721025918865,0.15415085,3356.3,3356.1,2.68167]
[1721025919321,0.15415085,3356.3,3355.7,1.7]
[1721025919322,0.15415085,3356.4,3356.0,2.68172]
[1721025919665,0.15415085,3356.2,3356.1,1.7]
[1721025920115,0.15415085,3356.2,3356.1,4.38168]
[1721025920324,0.15415085,3356.5,3356.1,4.38168]
[1721025920482,6.22392836,3357.0,3356.1,4.38168]
[1721025920483,0.15415085,3356.9,3356.5,2.68136]
[1721025920963,0.15415085,3356.9,3356.7,2.68119]
[1721025921162,0.15415085,3356.9,3356.8,2.68112]
[1721025922270,0.15415085,3356.9,3356.8,5.42180919]
[1721025922465,0.15415085,3357.1,3357.0,2.68096]
[1721025922667,0.15415085,3357.3,3357.2,2.6808]
[1721025923568,2.4048,3358.0,3356.9,7.06206]
[1721025923569,0.15415085,3357.0,3356.9,7.06206]
[1721025924006,0.15415085,3357.0,3356.9,4.38102]
[1721025925064,0.15415085,3357.0,3356.9,4.41179992]
[1721025925706,0.15415085,3357.0,3356.9,7.09283992]
[1721025926070,0.15415085,3357.0,3356.9,0.03077992]
[1721025926275,0.15415085,3357.0,3356.9,2.68104]
[1721025926576,0.15415085,3357.0,3356.9,2.71181443]
[1721025927367,0.15415085,3357.0,3356.9,0.03077443]
[1721025927672,0.15415085,3356.8,3356.7,2.68119]
[1721025928424,0.15415085,3356.8,3356.5,2.68133]
[1721025928568,0.15415085,3356.8,3356.6,2.68128]
[1721025929601,0.15415085,3356.5,3356.4,2.68144]
[1721025929805,0.15415085,3356.5,3356.3,1.7]
[1721025930006,0.15415085,3356.5,3356.2,2.68159]
[1721025930225,0.15415085,3356.5,3356.3,1.7]
[1721025930414,0.15415085,3356.5,3356.4,2.68144]
[1721025932478,0.15415085,3356.7,3356.4,2.68144]
[1721025932685,0.15415085,3356.7,3356.6,2.68128]
[1721025933302,2.2519,3357.2,3356.8,2.68112]
[1721025933585,0.15415085,3357.3,3357.0,2.68089]
[1721025933993,0.15415085,3357.1,3357.0,2.68089]
[1721025934291,0.15415085,3357.1,3357.0,5.36185]
[1721025934597,2.3824,3357.7,3357.2,2.6808]
[1721025934598,0.15415085,3357.3,3357.2,2.6808]
[1721025934801,6.22392836,3357.9,3357.4,2.68058]
[1721025934802,0.15415085,3357.9,3357.4,2.68058]
[1721025935106,0.15415085,3357.6,3357.5,2.74012145]
[1721025935419,0.15415085,3357.6,3357.5,2.68056]
[1721025935638,0.15415085,3357.6,3357.2,2.6808]
[1721025935639,0.15415085,3357.6,3357.4,2.68058]
[1721025939629,0.15415085,3357.6,3357.2,2.6808]
[1721025939630,0.15415085,3357.2,3356.7,1.7]
[1721025939778,0.15415085,3357.2,3356.7,3.0]
[1721025939981,0.15415085,3357.2,3356.6,1.527992]
[1721025940181,0.15415085,3357.0,3356.8,2.71182244]
[1721025940424,0.15415085,3357.0,3356.9,2.68104]
[1721025940722,0.15415085,3357.0,3356.9,2.71178008]
[1721025942418,0.15415085,3357.2,3357.1,2.68088]
[1721025942930,0.15415085,3357.6,3357.2,2.68079]
[1721025943092,0.15415085,3357.6,3357.4,2.68064]
[1721025943424,0.15415085,3357.6,3357.5,0.03053048]
[1721025944537,0.15415085,3357.6,3357.5,2.71109048]
[1721025947756,0.15415085,3357.6,3357.5,0.03053048]
[1721025947924,2.48175085,3357.6,3356.5,5.68129]
[1721025948118,0.31516019,3357.5,3356.6,4.209272]
[1721025948314,0.6241595,3357.4,3356.7,2.71193501]
[1721025948536,0.15415085,3356.8,3356.7,2.71193501]
[1721025952834,0.15415085,3356.8,3356.7,0.03074501]
[1721025952835,2.60015085,3356.8,3356.7,0.03074501]
[1721025953130,3.69083401,3356.8,3356.0,2.68175]
[1721025953334,0.15415085,3356.1,3356.0,2.68175]
[1721025955129,0.15415085,3356.1,3356.0,5.45422342]
[1721025955341,0.15415085,3356.7,3356.4,2.68142]
[1721025955540,3.07036753,3356.8,3356.4,2.68142]
[1721025955541,0.15415085,3356.5,3356.4,2.68142]
[1721025955743,6.22392836,3356.9,3356.6,2.68128]
[1721025955946,2.94156753,3357.2,3356.6,2.68128]
[1721025955947,0.15415085,3356.7,3356.6,5.36256]
[1721025956144,0.15415085,3357.1,3357.0,2.68096]
[1721025957455,0.15415085,3357.1,3357.0,5.36192]
[1721025960366,0.15415085,3356.8,3356.7,2.68119]
[1721025960735,0.15415085,3356.6,3356.5,2.6813]
[1721025961871,0.15415085,3356.6,3356.5,5.36266]
[1721025962074,0.15415085,3356.6,3356.5,2.6813]
[1721025962505,0.15415085,3356.6,3356.5,5.36266]
[1721025963036,3.12230284,3357.2,3356.7,1.7]
[1721025963366,0.15415085,3357.5,3357.2,2.68074]
[1721025963551,0.15415085,3357.3,3357.2,2.68074]
[1721025966291,0.77835369,3357.8,3357.3,1.7]
[1721025966499,0.15415085,3357.8,3357.7,2.6804]
[1721025966691,0.15415085,3357.8,3357.5,2.68056]
[1721025966692,0.55616664,3357.8,3357.5,2.68056]
[1721025966989,0.55616664,3357.8,3357.3,2.68071]
[1721025966990,0.15415085,3357.4,3357.3,2.68071]
[1721025968293,0.15415085,3357.4,3357.2,2.68079]
[1721025969694,0.15415085,3357.4,3357.3,2.68072]
[1721025970082,0.15415085,3357.1,3357.0,2.68095]
[1721025973107,0.15415085,3356.9,3356.8,2.68107]
[1721025973488,0.15415085,3357.1,3357.0,2.68096]
[1721025973878,0.15415085,3356.9,3356.8,5.36214]
[1721025974418,0.15415085,3357.1,3357.0,2.68096]
[1721025975202,0.55144749,3357.5,3357.1,2.68086]
[1721025975418,0.15415085,3357.2,3357.1,2.68086]
[1721025976168,0.15415085,3357.2,3357.1,5.36174]
[1721025979103,0.15415085,3357.2,3356.9,2.68102]
[1721025979430,0.15415085,3357.2,3356.7,1.527992]
[1721025979574,0.15415085,3356.5,3356.4,2.68139]
[1721025979776,0.15415085,3356.7,3356.4,2.68139]
[1721025979974,0.15415085,3356.5,3356.4,2.68139]
[1721025980513,0.15415085,3356.5,3356.1,2.68165]
[1721025980721,0.15415085,3356.2,3356.0,2.68175]
[1721025981294,0.15415085,3356.0,3355.4,1.527992]
[1721025981807,0.15415085,3356.0,3355.4,1.83783146]
[1721025982130,0.15415085,3355.7,3355.6,2.68208]
[1721025982353,2.61675085,3355.7,3355.4,1.83783146]
[1721025982496,0.15415085,3355.5,3355.4,1.83783146]
[1721025982855,0.15415085,3355.5,3355.4,1.527992]
[1721025983607,0.15415085,3355.1,3354.9,2.68262]
[1721025984722,0.15415085,3354.9,3354.7,2.68277]
[1721025985095,0.15415085,3354.7,3354.5,2.68295]
[1721025985454,0.15415085,3354.7,3354.6,2.68288]
[1721025991025,2.3415,3355.4,3354.6,2.68288]
[1721025991356,0.15415085,3355.0,3354.6,2.68288]
[1721025991729,0.15415085,3355.0,3354.8,2.68265]
[1721025991927,0.15415085,3355.0,3354.9,2.68264]
[1721025992133,2.3415,3355.4,3355.0,2.6825]
[1721025992656,0.15415085,3355.1,3355.0,2.6825]
[1721025993632,0.15415085,3355.1,3355.0,2.68256]
[1721025993856,0.15415085,3354.8,3354.7,2.68279]
[1721025994745,0.15415085,3355.3,3354.9,2.68264]
[1721025994941,0.15415085,3355.3,3355.1,2.68243]
[1721025995669,0.15415085,3355.0,3354.9,2.68264]
[1721025996930,2.3415,3355.4,3355.0,2.68251]
[1721025997134,0.15415085,3355.3,3355.2,2.6824]
[1721025998679,6.22392836,3355.8,3355.0,2.68251]
[1721025998680,0.15415085,3355.1,3355.0,2.68251]
[1721025999768,0.15415085,3355.1,3355.0,2.74211645]
[1721026000143,0.15415085,3355.1,3355.0,5.42467645]
[1721026000344,0.15415085,3355.3,3355.2,5.3648]
[1721026000682,0.15415085,3355.3,3355.2,5.39678029]
[1721026001042,0.15415085,3355.8,3355.5,2.68211]
[1721026001450,0.15415085,3355.8,3355.7,2.682]
[1721026001869,0.15415085,3355.8,3355.7,2.71374336]
[1721026003902,0.15415085,3355.8,3355.7,5.39574336]
[1721026004096,0.15415085,3356.0,3355.9,2.68184]
[1721026004393,0.15415085,3356.0,3355.9,2.71349877]
[1721026005457,0.15415085,3356.0,3355.9,5.39533877]
[1721026005656,6.22392836,3356.5,3356.2,2.68156]
[1721026005888,0.86850792,3356.5,3356.2,2.68156]
[1721026006202,0.15415085,3356.6,3356.5,2.68136]
[1721026006560,0.15415085,3356.6,3356.5,2.71266338]
[1721026007454,2.3511,3357.1,3356.6,2.68128]
[1721026007662,0.15415085,3356.9,3356.8,2.68111]
[1721026008111,0.15415085,3356.9,3356.8,2.71225839]
[1721026008392,1.02706877,3356.9,3356.8,0.03114839]
[1721026009461,0.15415085,3356.5,3356.3,2.68147]
[1721026010394,0.15415085,3356.5,3356.4,2.68142]
[1721026015174,0.15415085,3356.5,3356.4,2.71269078]
[1721026017676,0.15415085,3356.7,3356.6,2.68128]
[1721026018016,0.15415085,3356.7,3356.6,2.7124085]
[1721026020394,0.15415085,3356.7,3356.6,0.0311285]
[1721026020712,3.23897132,3357.1,3356.0,1.7]
[1721026020713,0.15415085,3356.5,3356.4,2.68144]
[1721026021928,0.15415085,3356.7,3356.6,2.68128]
[1721026022252,0.15415085,3357.2,3357.0,2.68096]
[1721026022396,0.15415085,3357.2,3357.1,2.68088]
[1721026022738,0.15415085,3357.2,3357.1,5.36176]
[1721026024407,0.15415085,3357.4,3357.3,2.68072]
[1721026024650,0.15415085,3357.4,3357.3,5.36144]
[1721026024945,0.15415085,3357.4,3356.7,2.6812]
[1721026024946,2.2554,3357.3,3356.7,2.6812]
[1721026025094,2.2554,3357.3,3356.5,1.527992]
[1721026025095,0.24095509,3357.2,3356.5,4.209342]
[1721026025294,0.24095509,3357.2,3356.6,2.6812]
[1721026025295,0.15415085,3356.7,3356.6,2.6812]
[1721026025744,0.15415085,3356.7,3356.5,1.527992]
[1721026026296,0.15415085,3356.7,3356.5,4.209352]
[1721026026729,0.15415085,3356.7,3356.5,1.527992]
[1721026027807,0.15415085,3356.1,3356.0,10.03174]
[1721026028138,0.15415085,3356.1,3356.0,2.68174]
[1721026030248,0.15415085,3356.1,3356.0,2.71201125]
[1721026030749,0.15415085,3356.1,3356.0,2.71203125]
[1721026030929,0.15415085,3356.1,3356.0,0.03027125]
[1721026031301,0.15415085,3355.7,3355.6,2.68206]
[1721026031503,0.15415085,3355.7,3355.5,2.68216]
[1721026032930,0.15415085,3355.7,3355.6,5.36416]
[1721026033435,0.15415085,3355.6,3355.4,4.38222]
[1721026033947,0.15415085,3355.6,3355.5,2.68216]
[1721026035973,0.15415085,3355.1,3354.8,3.0]
[1721026036115,0.15415085,3355.1,3353.7,4.23038743]
[1721026036116,0.15415085,3355.6,3355.0,2.68249]
[1721026036439,0.15415085,3354.8,3354.7,4.38278]
[1721026036744,0.15415085,3354.8,3354.7,2.68278]
[1721026036950,0.15415085,3354.6,3354.5,2.68291]
[1721026038153,0.15415085,3354.4,3354.3,2.68306]
[1721026040134,0.15415085,3354.4,3354.2,1.527992]
[1721026040337,0.15415085,3354.4,3354.3,2.68312]
[1721026040636,0.15415085,3354.4,3354.3,5.36624]
[1721026040836,0.15415085,3354.4,3354.2,4.211182]
[1721026041543,0.15415085,3354.4,3354.3,5.42585835]
[1721026041950,0.15415085,3354.4,3354.3,5.36624]
[1721026042626,0.15415085,3354.4,3354.3,5.42585376]
[1721026043262,0.15415085,3354.4,3354.3,5.36624]
[1721026043764,0.15415085,3354.4,3354.3,5.42585373]
[1721026044060,0.15415085,3354.4,3354.3,5.36624]
[1721026044472,0.15415085,3354.4,3354.3,5.42585281]
[1721026044971,0.15415085,3354.6,3354.5,2.68296]
[1721026045327,0.15415085,3354.6,3354.5,2.7140197]
[1721026046267,0.15415085,3354.6,3354.5,2.77363251]
[1721026046479,6.22392836,3355.5,3354.8,2.68272]
[1721026046480,0.15415085,3354.9,3354.8,2.68272]
[1721026046962,0.15415085,3354.9,3354.8,2.71379339]
[1721026047331,2.63985085,3354.9,3354.8,0.03107339]
[1721026047764,2.63985085,3354.9,3354.6,2.68285]
[1721026048073,0.15415085,3354.6,3354.4,2.68298]
[1721026049567,0.15415085,3354.6,3354.5,2.68296]
[1721026050865,0.15415085,3354.4,3354.2,1.527992]
[1721026051161,0.15415085,3354.4,3354.2,4.527992]
[1721026052881,0.15415085,3354.4,3354.2,7.211172]
[1721026053261,0.15415085,3354.4,3354.3,5.36624]
[1721026053447,0.15415085,3354.6,3354.5,2.68296]
[1721026053973,0.15415085,3354.6,3354.5,5.36592]
[1721026054530,0.15415085,3354.4,3354.3,2.68307]
[1721026054845,0.15415085,3354.4,3354.3,5.36619]
[1721026060296,0.15415085,3354.4,3354.3,5.39763198]
[1721026060661,0.15415085,3354.4,3354.3,2.71451198]
[1721026066074,0.15415085,3354.4,3354.3,0.03144198]
[1721026066260,0.15415085,3354.4,3354.2,4.211172]
[1721026066460,0.15415085,3354.4,3354.3,0.03144198]
[1721026066787,0.15415085,3354.4,3354.2,4.211172]
[1721026066973,0.15415085,3354.4,3354.3,0.03144198]
[1721026067361,0.15415085,3354.4,3354.2,4.211172]
[1721026067699,0.15415085,3354.4,3354.3,0.03144198]
[1721026067856,0.15415085,3354.4,3354.2,4.211172]
[1721026068061,0.15415085,3354.4,3354.3,0.03144198]
[1721026068275,0.15415085,3354.4,3354.2,4.211172]
[1721026068475,0.15415085,3354.4,3354.3,0.03144198]
[1721026068805,0.15415085,3354.4,3354.2,4.211172]
[1721026069091,0.15415085,3354.4,3354.3,0.03144198]
[1721026069280,0.15415085,3354.4,3354.2,4.211172]
[1721026069483,0.15415085,3354.4,3354.3,0.03144198]
[1721026069665,0.15415085,3354.4,3354.2,4.211172]
[1721026069860,0.15415085,3354.4,3354.3,0.03144198]
[1721026070201,0.15415085,3354.4,3354.2,4.211172]
[1721026070502,0.15415085,3354.4,3354.3,2.71456198]
[1721026071269,0.15415085,3354.6,3354.5,2.68296]
[1721026071469,0.15415085,3354.6,3354.5,2.71433245]
[1721026073418,0.15415085,3354.6,3354.5,0.03137245]
[1721026073721,0.15415085,3354.4,3354.2,1.527992]
[1721026073936,0.15415085,3353.6,3353.5,2.68374]
[1721026074210,0.15415085,3353.6,3353.5,5.3675]
[1721026075085,0.15415085,3353.6,3353.5,5.39923662]
[1721026076388,0.15415085,3353.6,3353.5,5.70794663]
[1721026076785,0.15415085,3353.6,3353.5,3.02418663]
[1721026077093,2.61505085,3353.6,3353.5,0.03173662]
[1721026077296,2.93871645,3353.6,3353.3,2.68385]
[1721026077513,0.15415085,3353.2,3353.1,2.68407]
[1721026078415,0.15415085,3353.2,3353.0,1.5964803]
[1721026088928,2.438,3353.1,3353.0,1.5964803]
[1721026089135,2.438,3353.1,3353.0,0.0684883]
[1721026089447,2.89705746,3353.1,3353.0,0.0684883]
[1721026089924,3.47474054,3353.1,3353.0,0.0684883]
[1721026090489,3.52043206,3353.1,3353.0,0.0684883]
[1721026090692,6.20451206,3353.1,3353.0,0.0684883]
[1721026090893,6.75451206,3353.1,3353.0,0.0684883]
[1721026091088,6.70882054,3353.1,3353.0,0.0684883]
[1721026091525,6.08544594,3353.1,3353.0,0.0684883]
[1721026091730,3.40136594,3353.1,3353.0,0.0684883]
[1721026091935,2.85136594,3353.1,3353.0,0.0684883]
[1721026093405,5.58113746,3353.1,3353.0,0.0684883]
[1721026093619,6.08544594,3353.1,3353.0,0.0684883]
[1721026094432,3.40136594,3353.1,3353.0,0.0684883]
[1721026096042,2.85136594,3353.1,3353.0,0.0684883]
[1721026096416,2.85136594,3353.1,3353.0,0.10105519]
[1721026097004,2.85136594,3353.1,3353.0,0.0684883]
[1721026098101,2.59215085,3353.1,3353.0,0.10103046]
[1721026099899,0.15415085,3353.1,3353.0,0.10103046]
[1721026100749,0.15415085,3353.3,3353.0,0.10103046]
[1721026101038,0.15415085,3353.1,3353.0,0.10103046]
[1721026104415,2.54355085,3353.1,3353.0,0.10103046]
[1721026104604,3.83495344,3353.1,3353.0,0.10103046]
[1721026104813,3.83495344,3353.1,3353.0,0.0684883]
[1721026106145,3.88064496,3353.1,3353.0,0.0684883]
[1721026106460,3.88064496,3353.1,3352.0,2.68494]
[1721026106461,0.15415085,3352.2,3352.0,2.68494]
[1721026106654,0.15415085,3351.6,3351.0,2.2524]
[1721026106827,0.15415085,3351.5,3351.3,2.6855]
[1721026107362,0.15415085,3351.2,3351.1,2.68564]
[1721026107836,0.15415085,3351.4,3351.3,2.68552]
[1721026110156,0.15415085,3351.4,3351.3,5.37104]
[1721026111048,6.22392836,3352.4,3350.8,3.227992]
[1721026111235,2.3087,3352.5,3352.0,2.68488]
[1721026111421,2.3087,3352.5,3352.2,2.6848]
[1721026111621,0.15415085,3352.3,3352.2,2.6848]
[1721026112745,0.15415085,3352.7,3352.5,2.68455]
[1721026114253,0.15415085,3352.4,3352.3,2.68466]
[1721026114767,0.15415085,3352.4,3352.2,2.6848]
[1721026115055,0.15415085,3352.4,3352.3,2.68472]
[1721026115277,0.15415085,3352.4,3352.3,5.36944]
[1721026116367,0.15415085,3352.4,3352.2,2.6848]
[1721026116568,0.15415085,3352.4,3352.3,5.36944]
[1721026118475,0.93361357,3353.5,3353.0,2.68416]
[1721026118476,0.15415085,3353.1,3353.0,2.68416]
[1721026118699,0.15415085,3353.1,3353.0,5.36832]
[1721026119171,2.4679,3353.7,3353.2,2.684]
[1721026119172,0.15415085,3353.3,3353.2,2.684]
[1721026119981,0.15415085,3353.3,3353.2,5.368]
[1721026120139,0.15415085,3353.3,3353.2,5.39820425]
[1721026120338,0.15415085,3353.3,3353.2,5.4578429]
[1721026120656,0.15415085,3353.3,3353.2,0.03020425]
[1721026120837,0.15415085,3353.3,3353.2,2.71420425]
[1721026121042,0.15415085,3353.3,3353.2,2.684]
[1721026121233,0.15415085,3353.3,3353.2,2.71420425]
[1721026121966,0.15415085,3353.3,3353.2,0.03020425]
[1721026122149,0.15415085,3353.1,3353.0,2.68416]
[1721026124867,0.15415085,3353.1,3353.0,5.36832]
[1721026127453,0.15415085,3354.2,3354.1,2.68328]
[1721026127656,0.15415085,3354.2,3354.1,5.36656]
[1721026135111,0.15415085,3354.5,3354.4,5.36608]
[1721026135346,0.15415085,3354.7,3354.3,1.7]
[1721026135488,0.15415085,3354.7,3354.6,2.68288]
[1721026135812,0.15415085,3354.7,3354.6,2.71216733]
[1721026136172,0.15415085,3354.7,3354.6,5.39504733]
[1721026136419,0.15415085,3354.9,3354.8,2.68272]
[1721026136779,0.15415085,3354.9,3354.8,2.71192002]
[1721026137823,0.15415085,3354.9,3354.8,5.39464002]
[1721026138375,0.15415085,3354.9,3354.8,0.02920002]
[1721026138578,0.15415085,3354.6,3354.5,2.68295]
[1721026138986,2.49265085,3354.6,3354.5,2.7122324]
[1721026140084,0.15415085,3354.6,3354.5,2.7122324]
[1721026140719,0.39582594,3354.6,3354.5,0.0292824]
[1721026141098,0.15415085,3354.4,3354.3,2.68306]
[1721026141726,0.15415085,3354.4,3353.7,1.7]
[1721026141727,0.15415085,3353.9,3353.7,2.68359]
[1721026142421,0.15415085,3353.6,3353.5,2.68375]
[1721026142585,0.15415085,3353.8,3353.6,2.6836]
[1721026144800,2.28,3354.4,3353.8,1.7]
[1721026145122,2.28,3354.4,3354.1,2.68328]
[1721026145337,0.15415085,3354.3,3354.2,2.68319]
[1721026145540,0.15415085,3354.6,3354.5,2.68296]
[1721026146026,0.15415085,3354.6,3354.5,5.36592]
[1721026146419,0.15415085,3354.6,3354.3,0.05961396]
[1721026146420,0.15415085,3354.9,3354.8,4.38272]
[1721026148938,6.22392836,3355.4,3354.8,1.7]
[1721026148939,0.15415085,3355.3,3354.8,1.7]
[1721026149248,0.15415085,3355.3,3355.2,2.6824]
[1721026149901,0.15415085,3355.5,3355.4,5.36448]
[1721026150379,0.15415085,3355.9,3355.6,1.7]
[1721026150712,0.15415085,3355.9,3355.8,2.68192]
[1721026151236,0.15415085,3355.9,3355.8,2.710674]
[1721026152335,0.15415085,3355.9,3355.8,0.028754]
[1721026152836,0.15415085,3355.5,3355.3,4.3823]
[1721026153040,0.15415085,3355.5,3355.3,1.7]
[1721026153218,0.15415085,3355.5,3355.4,5.36448]
[1721026153605,0.15415085,3355.7,3355.6,2.68208]
[1721026154924,2.3196,3356.2,3355.7,1.7]
[1721026155151,0.15415085,3355.9,3355.8,2.68192]
[1721026155316,0.15415085,3355.9,3355.8,5.36384]
[1721026156215,0.15415085,3355.9,3355.8,2.68192]
[1721026161828,0.15415085,3355.9,3355.7,4.382]
[1721026162018,0.15415085,3355.9,3355.8,2.68192]
[1721026162753,0.15415085,3355.9,3355.7,1.7]
[1721026162961,0.15415085,3355.5,3355.4,2.68224]
[1721026165464,0.15415085,3355.7,3355.6,2.68208]
[1721026165623,0.15415085,3355.7,3355.6,2.71267494]
[1721026166453,0.15415085,3355.7,3355.6,0.03059494]
[1721026166665,0.15415085,3355.7,3355.3,2.68232]
[1721026166954,0.15415085,3355.1,3355.0,2.68255]
[1721026167964,0.15415085,3354.9,3354.8,2.68267]
[1721026168947,0.15415085,3354.9,3354.7,4.38278]
[1721026169334,0.15415085,3354.9,3354.8,2.68272]
[1721026171746,0.15415085,3354.9,3354.8,5.36544]
[1721026171943,0.15415085,3355.1,3354.9,2.68263]
[1721026173264,0.15415085,3355.1,3355.0,2.68256]
[1721026173485,0.15415085,3354.9,3354.7,4.38278]
[1721026173976,0.15415085,3354.9,3354.8,2.68272]
[1721026174471,0.15415085,3354.9,3354.7,1.7]
[1721026174650,0.15415085,3354.9,3354.7,4.38279]
[1721026174829,0.15415085,3354.9,3354.8,2.68272]
[1721026175037,0.15415085,3354.9,3354.7,1.7]
[1721026176766,0.15415085,3354.9,3354.8,2.68272]
[1721026176972,0.15415085,3354.9,3354.7,1.7]
[1721026177778,0.15415085,3354.9,3354.7,4.38279]
[1721026180284,0.15415085,3354.9,3354.8,0.02890029]
[1721026180756,0.15415085,3354.9,3354.7,4.38279]
[1721026180948,0.15415085,3354.9,3354.8,0.02890029]
[1721026181344,0.15415085,3354.9,3354.7,4.38279]
[1721026181545,0.15415085,3354.9,3354.8,0.02890029]
[1721026181777,0.24167509,3354.9,3354.8,0.02890029]
[1721026181976,0.15415085,3354.5,3354.4,2.68304]
[1721026183339,0.15415085,3354.5,3354.4,5.36608]
[1721026184853,0.15415085,3354.5,3354.3,1.7]
[1721026185685,0.15415085,3354.5,3354.3,4.38312]
[1721026186555,0.15415085,3354.5,3354.4,2.68304]
[1721026188260,0.15415085,3354.5,3354.4,5.36608]
[1721026191200,3.15586217,3355.3,3354.8,1.7]
[1721026191355,0.15415085,3355.1,3355.0,2.68251]
[1721026192085,0.15415085,3354.9,3354.8,1.7]
[1721026192463,0.15415085,3354.9,3354.8,4.3827]
[1721026193803,0.15415085,3354.9,3354.8,7.06542]
[1721026195301,0.15415085,3354.9,3354.8,7.09441472]
[1721026196520,0.15415085,3354.9,3354.8,1.72899472]
[1721026197068,0.15415085,3354.9,3354.8,7.09443472]
[1721026203601,2.59525085,3354.9,3354.8,1.72899472]
[1721026203897,2.59525085,3354.9,3354.8,4.41171472]
[1721026205083,2.59525085,3354.9,3354.8,2.71171472]
[1721026206493,0.15415085,3354.9,3354.8,7.09443472]
[1721026211539,0.15415085,3354.9,3354.8,2.71171472]
[1721026211694,2.2554,3354.9,3354.8,0.02899472]
[1721026212026,2.2554,3354.9,3354.7,2.68278]
[1721026212027,2.69758845,3354.9,3354.7,2.68278]
[1721026212234,2.69758845,3354.9,3354.8,0.02896461]
[1721026212434,2.69758845,3354.9,3354.7,2.68278]
[1721026212607,2.69758845,3354.9,3354.8,0.02896461]
[1721026212993,2.38565464,3354.9,3354.8,0.02896461]
[1721026213194,3.01143996,3354.9,3354.8,0.02896461]
[1721026213389,3.01143996,3354.9,3354.7,2.68278]
[1721026213734,2.38565464,3354.9,3354.8,0.02896461]
[1721026214620,3.01143996,3354.9,3354.8,0.02896461]
[1721026214811,3.01143996,3354.9,3354.7,2.68278]
[1721026215126,3.01143996,3354.9,3354.8,0.02896461]
[1721026215127,2.38565464,3354.9,3354.8,0.02896461]
[1721026215696,2.38565464,3354.9,3354.7,2.68278]
[1721026215999,2.38565464,3354.9,3354.8,0.02896461]
[1721026216199,2.38565464,3354.9,3354.7,2.68278]
[1721026216398,3.01143996,3354.9,3354.7,2.68278]
[1721026216635,2.38565464,3354.9,3354.8,0.02900977]
[1721026216939,3.01143996,3354.9,3354.8,0.02900977]
[1721026217125,2.38565464,3354.9,3354.7,2.68278]
[1721026217328,2.38565464,3354.9,3354.8,0.02900977]
[1721026217695,2.38565464,3354.9,3354.7,2.68278]
[1721026217937,2.38565464,3354.9,3354.8,0.02900977]
[1721026218403,2.38565464,3354.9,3354.7,2.68278]
[1721026218710,2.38565464,3354.9,3354.8,0.02900977]
[1721026218926,2.38565464,3354.9,3354.7,2.68278]
[1721026219236,2.38565464,3354.9,3354.8,0.02904809]
[1721026219658,2.38565464,3354.9,3354.7,2.68278]
[1721026219866,0.62578532,3355.5,3355.4,1.7]
[1721026220157,6.22392836,3355.9,3355.4,1.7]
[1721026220158,6.22392836,3355.9,3355.8,7.06384]
[1721026220446,6.22392836,3355.9,3355.4,6.36349518]
[1721026220447,0.15415085,3356.5,3355.9,2.68177]
[1721026220648,0.15415085,3356.2,3356.1,2.68168]
[1721026220997,0.15415085,3356.2,3356.1,2.71019982]
[1721026221340,0.15415085,3356.2,3356.1,5.39187982]
[1721026221941,0.15415085,3356.5,3356.4,2.68144]
[1721026222123,0.15415085,3356.5,3356.4,5.36288]
[1721026222334,0.15415085,3356.5,3356.4,5.39323886]
[1721026223331,0.15415085,3356.5,3356.4,5.45282018]
[1721026224251,0.15415085,3356.5,3356.4,5.39323886]
[1721026224812,0.15415085,3356.5,3356.4,5.45282027]
[1721026225232,2.4335,3357.2,3356.6,2.68128]
[1721026225233,0.15415085,3356.7,3356.6,2.68128]
[1721026225551,0.15415085,3356.7,3356.6,2.71389404]
[1721026225751,0.15415085,3356.7,3356.6,5.39517404]
[1721026226109,0.15415085,3356.9,3356.8,5.36224]
[1721026226315,0.15415085,3356.9,3356.8,5.39477392]
[1721026226820,0.15415085,3356.9,3356.8,0.03253392]
[1721026227154,0.15415085,3356.7,3356.6,2.68128]
[1721026230523,0.15415085,3356.5,3356.3,4.38152]
[1721026232253,0.15415085,3356.2,3356.1,2.68167]
[1721026232922,3.92738985,3357.7,3356.3,4.38152]
[1721026232923,0.15415085,3356.7,3356.3,4.38152]
[1721026233120,0.15415085,3356.7,3356.4,2.68142]
[1721026233364,0.15415085,3356.7,3356.6,5.36256]
[1721026234767,0.15415085,3356.7,3356.6,2.68128]
[1721026234925,2.64885085,3356.7,3356.6,2.68128]
[1721026236957,2.64885085,3356.7,3356.4,2.68142]
[1721026236958,0.15415085,3356.5,3356.4,2.68142]
[1721026238166,0.15415085,3356.5,3356.3,1.7]
[1721026238369,0.15415085,3356.5,3355.9,1.527992]
[1721026238370,0.26488509,3356.5,3355.9,1.527992]
[1721026238664,0.15415085,3356.1,3355.9,1.527992]
[1721026238869,0.04569152,3356.4,3355.6,2.68206]
[1721026238870,0.15415085,3355.7,3355.6,2.68206]
[1721026240058,0.15415085,3355.7,3355.6,5.68206]
[1721026240247,0.15415085,3355.7,3355.6,5.74580511]
[1721026241467,0.15415085,3355.7,3355.6,7.44580511]
[1721026243042,0.15415085,3355.7,3355.6,0.06374511]
[1721026243381,0.15415085,3354.9,3354.8,2.6827]